bitfinex-derivatives/quotes_ETHF0:USTF0_20250627
["timestamp","ask_amount","ask_price","bid_price","bid_amount"]
[1751056618380,3.2078,2422.4,2422.1,9.37195899]
[1751056618681,3.2078,2422.4,2422.3,4.64460861]
[1751056618882,9.7158,2422.4,2422.3,4.64460861]
[1751056619075,10.54108,2422.4,2422.3,3.81929861]
[1751056619275,10.54108,2422.4,2422.3,4.75379861]
[1751056619475,10.54108,2422.4,2422.3,2.294]
[1751056619983,10.54108,2422.4,2422.3,43.094]
[1751056620178,10.54108,2422.4,2422.3,52.46595899]
[1751056621485,4.03308,2422.4,2422.3,51.10645899]
[1751056621873,10.54108,2422.4,2422.3,51.10645899]
[1751056622083,4.03308,2422.4,2422.3,51.10645899]
[1751056622286,10.54108,2422.4,2422.3,51.10645899]
[1751056622784,4.03308,2422.4,2422.3,51.10645899]
[1751056622988,10.54108,2422.4,2422.3,51.10645899]
[1751056623483,9.7158,2422.4,2422.3,51.10645899]
[1751056623687,3.2078,2422.4,2422.3,51.10645899]
[1751056623984,9.7158,2422.4,2422.3,51.10645899]
[1751056624283,10.54108,2422.4,2422.3,51.10645899]
[1751056624679,9.7158,2422.4,2422.3,51.10645899]
[1751056625075,10.54108,2422.4,2422.3,51.10645899]
[1751056625276,10.54108,2422.4,2422.3,50.17195899]
[1751056625680,4.96468,2422.4,2422.3,9.37195899]
[1751056625887,10.54108,2422.4,2422.3,9.37195899]
[1751056628185,4.03308,2422.4,2422.3,9.37195899]
[1751056628388,9.7158,2422.4,2422.3,14.0165676]
[1751056628895,9.7158,2422.4,2422.3,14.6151576]
[1751056629085,10.54108,2422.4,2422.3,14.6151576]
[1751056629691,10.54108,2422.4,2422.3,15.4404676]
[1751056630291,7.33328,2422.4,2422.3,15.4404676]
[1751056630888,7.33328,2422.4,2422.3,14.0165676]
[1751056631794,0.82528,2422.4,2422.3,14.0165676]
[1751056631995,7.33228,2422.4,2422.3,14.0165676]
[1751056632891,0.82528,2422.4,2422.3,14.0165676]
[1751056633108,7.33228,2422.4,2422.3,14.0165676]
[1751056633593,0.82528,2422.4,2422.3,14.0165676]
[1751056633799,7.33228,2422.4,2422.3,14.0165676]
[1751056633989,6.507,2422.4,2422.3,14.0165676]
[1751056634497,0.82525,2422.5,2422.4,0.82528]
[1751056634697,6.507,2422.4,2422.3,14.0165476]
[1751056635596,6.507,2422.4,2422.3,15.64114113]
[1751056636794,6.507,2422.4,2422.3,15.64116113]
[1751056636996,7.33228,2422.4,2422.3,15.64116113]
[1751056637998,0.82528,2422.4,2422.3,15.64116113]
[1751056638199,7.33228,2422.4,2422.3,15.64116113]
[1751056638498,0.82528,2422.4,2422.3,9.37195899]
[1751056638699,7.33228,2422.4,2422.3,9.37195899]
[1751056638998,7.33228,2422.4,2422.3,10.19726899]
[1751056639998,6.507,2422.4,2422.3,10.19726899]
[1751056640401,7.33228,2422.4,2422.3,9.37195899]
[1751056640603,0.82527,2422.5,2422.3,10.19726899]
[1751056640796,7.33228,2422.4,2422.3,9.37195899]
[1751056641295,0.82528,2422.4,2422.3,11.00638107]
[1751056641502,7.33228,2422.4,2422.3,11.00638107]
[1751056642400,7.33228,2422.4,2422.3,9.37195899]
[1751056642802,0.82527,2422.5,2422.3,10.19726899]
[1751056643002,6.507,2422.4,2422.3,10.19726899]
[1751056643299,0.82527,2422.5,2422.3,10.19726899]
[1751056643501,6.507,2422.4,2422.3,10.19726899]
[1751056643701,6.507,2422.4,2422.3,12.63875622]
[1751056644605,7.33228,2422.4,2422.3,11.81344622]
[1751056645101,7.32928,2422.4,2422.3,11.81344622]
[1751056645300,7.32928,2422.4,2422.3,36.99644622]
[1751056645607,0.82528,2422.4,2422.3,36.19047334]
[1751056645904,9.73028,2422.4,2422.3,36.19047334]
[1751056646401,8.26738,2422.4,2422.3,36.19080531]
[1751056646600,9.67648,2422.4,2422.3,36.19080531]
[1751056647606,9.67648,2422.4,2422.3,11.00780531]
[1751056648303,8.26738,2422.4,2422.3,9.37195899]
[1751056654010,1.76338,2422.4,2422.3,9.37195899]
[1751056654307,8.26738,2422.4,2422.3,9.37195899]
[1751056654511,9.22798,2422.4,2422.3,9.37195899]
[1751056657113,2.72398,2422.4,2422.3,9.37195899]
[1751056657412,9.22798,2422.4,2422.3,9.37195899]
[1751056658113,9.22798,2422.4,2422.3,4.38195899]
[1751056658114,4.10648,2422.4,2422.3,4.38195899]
[1751056658311,10.61048,2422.4,2422.3,6.01792688]
[1751056658511,15.60048,2422.4,2422.3,4.38195899]
[1751056658709,20.60048,2422.4,2422.3,4.38195899]
[1751056659411,15.60048,2422.4,2422.3,4.38195899]
[1751056660211,20.60048,2422.4,2422.3,4.38195899]
[1751056661409,45.77848,2422.4,2422.3,4.38195899]
[1751056666416,40.77848,2422.4,2422.3,4.38195899]
[1751056668421,9.09648,2422.4,2422.3,4.38195899]
[1751056668620,40.77948,2422.4,2422.3,4.38195899]
[1751056669422,45.77948,2422.4,2422.3,4.38195899]
[1751056673416,9.09648,2422.4,2422.3,4.38195899]
[1751056673621,40.77848,2422.4,2422.3,4.38195899]
[1751056676722,9.09648,2422.4,2422.3,4.38195899]
[1751056676925,5.81528,2422.4,2422.3,4.38195899]
[1751056677115,3.2078,2422.5,2422.3,4.38195899]
[1751056677316,6.498,2422.4,2422.3,4.38195899]
[1751056677518,3.2078,2422.5,2422.3,4.38195899]
[1751056677716,9.7058,2422.5,2422.4,3.81929861]
[1751056678018,9.7058,2422.5,2422.3,46.00725899]
[1751056678616,9.7058,2422.5,2422.4,0.82528]
[1751056678817,4.99,2423.0,2422.8,0.82513]
[1751056679022,4.99,2423.0,2422.9,0.9033]
[1751056679222,11.488,2423.0,2422.8,3.2078]
[1751056679527,12.31308,2423.0,2422.9,0.9545]
[1751056680219,12.31308,2423.0,2422.9,5.33645899]
[1751056680424,5.81508,2423.0,2422.9,5.33645899]
[1751056680813,12.31308,2423.0,2422.9,5.33645899]
[1751056681624,0.82508,2423.0,2422.9,5.33645899]
[1751056681813,7.32308,2423.0,2422.9,5.33645899]
[1751056682423,7.32208,2423.0,2422.9,5.33645899]
[1751056682723,7.32208,2423.0,2422.9,4.38195899]
[1751056683123,7.32208,2423.0,2422.9,5.32785899]
[1751056683526,6.497,2423.0,2422.9,5.32785899]
[1751056684222,28.99229861,2423.2,2422.9,5.32785899]
[1751056684431,0.82508,2423.0,2422.9,5.32785899]
[1751056685127,0.82507,2423.1,2422.9,5.32785899]
[1751056685525,0.82503,2423.2,2422.9,6.15294899]
[1751056685732,7.32205,2423.1,2422.9,5.32785899]
[1751056686031,0.82508,2423.0,2422.9,5.32785899]
[1751056686532,7.32207,2423.1,2422.9,5.32785899]
[1751056686730,6.497,2423.1,2422.9,6.15296899]
[1751056687236,7.32205,2423.1,2422.9,6.15296899]
[1751056688329,0.82503,2423.2,2423.0,0.82508]
[1751056688523,7.32204,2423.1,2422.9,6.15294899]
[1751056689326,4.99,2423.4,2423.3,0.82498]
[1751056689522,0.82482,2423.8,2423.6,0.82485]
[1751056689721,6.497,2423.9,2423.7,8.00569861]
[1751056689920,6.497,2423.9,2423.7,48.80569861]
[1751056690322,7.32179,2423.9,2423.7,54.0124876]
[1751056690528,7.32179,2423.9,2423.7,53.1876576]
[1751056690723,7.32179,2423.9,2423.7,54.0124976]
[1751056690930,0.82481,2423.8,2423.7,53.1876576]
[1751056692436,7.32179,2423.9,2423.7,54.0124976]
[1751056692628,4.99,2424.2,2424.1,0.8247]
[1751056692825,6.496,2424.4,2424.1,4.64399861]
[1751056693144,33.97129861,2424.9,2424.3,3.2078]
[1751056693326,0.8246,2424.4,2424.3,3.2078]
[1751056693529,7.3206,2424.4,2424.3,3.2078]
[1751056694526,7.3186,2424.4,2424.3,3.2078]
[1751056695335,7.3186,2424.4,2424.3,7.58975899]
[1751056696329,0.8246,2424.4,2424.3,7.58975899]
[1751056696532,7.3186,2424.4,2424.3,7.58975899]
[1751056697328,0.82455,2424.6,2424.3,7.58975899]
[1751056697626,0.8246,2424.4,2424.3,13.7071576]
[1751056697827,7.3186,2424.4,2424.3,9.88785899]
[1751056699432,7.3186,2424.4,2424.3,7.58975899]
[1751056699737,7.3186,2424.4,2424.3,4.38195899]
[1751056700236,9.7013,2424.4,2424.3,4.38195899]
[1751056703332,8.3123,2424.4,2424.3,4.38195899]
[1751056703535,9.7324,2424.4,2424.3,4.38195899]
[1751056704128,8.3123,2424.4,2424.3,4.38195899]
[1751056704539,9.7324,2424.4,2424.3,4.38195899]
[1751056704839,4.99,2424.5,2424.3,8.2012576]
[1751056705041,6.493,2424.4,2424.3,9.0258776]
[1751056705235,6.493,2424.4,2424.3,4.64391861]
[1751056705541,6.493,2424.4,2424.3,3.81929861]
[1751056706032,6.493,2424.4,2424.3,5.21499861]
[1751056706234,6.493,2424.4,2424.3,10.4215976]
[1751056706434,6.49,2424.4,2424.3,12.8047576]
[1751056707540,0.82457,2424.5,2424.3,12.8047576]
[1751056707735,6.49,2424.4,2424.3,13.6293876]
[1751056707936,6.49,2424.4,2424.3,12.8047576]
[1751056709041,7.3146,2424.4,2424.3,11.4090576]
[1751056709540,6.49,2424.4,2424.3,11.4090576]
[1751056710438,6.49,2424.4,2424.3,12.2336976]
[1751056710837,0.82455,2424.6,2424.4,0.8246]
[1751056711040,6.489,2424.5,2424.3,12.2336676]
[1751056711236,6.489,2424.5,2424.4,0.9293]
[1751056711740,6.489,2424.5,2424.4,2.3196]
[1751056711935,6.489,2424.5,2424.4,3.1442]
[1751056712338,6.489,2424.5,2424.4,0.8246]
[1751056712540,6.489,2424.5,2424.4,3.1442]
[1751056713136,6.9126,2424.9,2424.4,7.3196]
[1751056713331,0.82438,2425.1,2424.8,4.64376861]
[1751056713645,6.489,2425.0,2424.8,4.64376861]
[1751056713835,6.489,2425.0,2424.9,3.2078]
[1751056714636,7.3134,2425.0,2424.9,3.2078]
[1751056715244,7.3134,2425.0,2424.9,7.58975899]
[1751056715649,11.13269861,2425.0,2424.9,4.38195899]
[1751056716040,16.13269861,2425.0,2424.9,4.38195899]
[1751056716343,22.13859861,2425.0,2424.9,4.38195899]
[1751056717342,17.13859861,2425.0,2424.9,4.38195899]
[1751056720048,10.64959861,2425.0,2424.9,4.38195899]
[1751056720241,17.13859861,2425.0,2424.9,4.38195899]
[1751056721750,10.64959861,2425.0,2424.9,4.38195899]
[1751056722044,17.13759861,2425.0,2424.9,4.38195899]
[1751056723846,10.64959861,2425.0,2424.9,4.38195899]
[1751056724146,17.13759861,2425.0,2424.9,4.38195899]
[1751056724950,10.64959861,2425.0,2424.9,4.38195899]
[1751056725150,17.13759861,2425.0,2424.9,4.38195899]
[1751056725848,17.13759861,2425.0,2424.9,1.17415899]
[1751056727752,22.13759861,2425.0,2424.9,1.17415899]
[1751056727954,25.95689722,2425.0,2424.9,0.34735899]
[1751056728157,25.95689722,2425.0,2424.9,8.99e-06]
[1751056730055,51.09889722,2425.0,2424.9,8.99e-06]
[1751056730857,19.46889722,2425.0,2424.9,8.99e-06]
[1751056731053,51.10089722,2425.0,2424.9,8.99e-06]
[1751056732259,52.55119722,2425.0,2424.9,8.99e-06]
[1751056734156,54.99876328,2425.0,2424.9,8.99e-06]
[1751056734655,20.91919722,2425.0,2424.9,8.99e-06]
[1751056734858,52.55119722,2425.0,2424.9,8.99e-06]
[1751056735253,23.38874261,2425.0,2424.9,8.99e-06]
[1751056735559,55.02074261,2425.0,2424.9,8.99e-06]
[1751056735965,52.55119722,2425.0,2424.9,8.99e-06]
[1751056737246,0.82464,2424.3,2424.2,1.62609765]
[1751056737452,38.65809861,2424.3,2423.9,0.8854]
[1751056737652,0.82474,2424.0,2423.9,0.8854]
[1751056737954,32.45474,2424.0,2423.9,0.8854]
[1751056740456,4.63259861,2424.2,2423.9,0.8854]
[1751056740654,6.488,2424.1,2424.0,1.38]
[1751056740854,7.3127,2424.1,2424.0,1.38]
[1751056741161,6.488,2424.1,2424.0,1.38]
[1751056741355,7.3127,2424.1,2424.0,1.38]
[1751056741955,6.488,2424.1,2424.0,1.38]
[1751056742161,7.3127,2424.1,2424.0,1.38]
[1751056746965,0.82468,2424.2,2424.0,1.38]
[1751056747267,7.3127,2424.1,2424.0,1.38]
[1751056747764,6.488,2424.1,2424.0,1.38]
[1751056747964,7.3127,2424.1,2424.0,1.38]
[1751056750359,6.488,2424.1,2424.0,1.38]
[1751056750766,7.31271,2424.1,2424.0,1.38]
[1751056753669,0.82471,2424.1,2424.0,1.38]
[1751056753967,7.31271,2424.1,2424.0,1.38]
[1751056754964,0.82471,2424.1,2424.0,1.38]
[1751056755166,7.31271,2424.1,2424.0,1.38]
[1751056755468,7.31271,2424.1,2424.0,3.00609765]
[1751056755661,7.31271,2424.1,2424.0,1.38]
[1751056756066,0.82471,2424.1,2424.0,1.38]
[1751056756267,7.31271,2424.1,2424.0,1.38]
[1751056756970,0.82471,2424.1,2424.0,1.38]
[1751056757268,7.31271,2424.1,2424.0,1.38]
[1751056757764,6.488,2424.1,2424.0,1.38]
[1751056757966,6.488,2424.1,2424.0,3.00609765]
[1751056758375,7.31271,2424.1,2424.0,3.00609765]
[1751056761677,7.31271,2424.1,2424.0,1.62609765]
[1751056763880,11.13200861,2424.1,2424.0,1.62609765]
[1751056764073,0.82477,2423.9,2423.8,1.62609765]
[1751056764273,0.82481,2423.8,2423.7,5.67849765]
[1751056764674,0.82481,2423.8,2423.7,46.47849765]
[1751056765082,0.82481,2423.8,2423.7,44.8524]
[1751056765375,0.82481,2423.8,2423.7,46.4853487]
[1751056765580,0.82481,2423.8,2423.7,47.29154648]
[1751056765783,0.82481,2423.8,2423.7,44.8524]
[1751056766780,0.82481,2423.8,2423.7,46.48539096]
[1751056767181,7.31281,2423.8,2423.7,4.84079096]
[1751056767382,7.31281,2423.8,2423.7,3.2078]
[1751056767685,9.60111,2423.8,2423.7,3.2078]
[1751056769482,9.60111,2423.8,2423.7,4.84079096]
[1751056770383,9.60111,2423.8,2423.7,3.2078]
[1751056772686,0.82484,2423.7,2423.6,1.63299096]
[1751056772985,0.82488,2423.6,2423.5,2.49799096]
[1751056774285,0.82488,2423.6,2423.5,0.865]
[1751056781793,0.82486,2423.7,2423.5,0.865]
[1751056782881,0.82488,2423.6,2423.5,0.865]
[1751056785695,0.82488,2423.6,2423.5,4.0728]
[1751056788397,0.82487,2423.7,2423.5,4.0728]
[1751056788999,0.82489,2423.6,2423.5,4.0728]
[1751056789201,0.82489,2423.6,2423.5,5.70579096]
[1751056792802,0.82487,2423.7,2423.5,5.70579096]
[1751056793203,0.82488,2423.6,2423.5,5.70579096]
[1751056795208,0.82488,2423.6,2423.5,4.0728]
[1751056795513,0.82488,2423.6,2423.5,5.70862909]
[1751056796706,0.82485,2423.7,2423.5,5.70862909]
[1751056797008,6.485,2423.6,2423.5,6.51194648]
[1751056797306,6.485,2423.6,2423.5,7.89914648]
[1751056797810,7.30986,2423.6,2423.5,7.89914648]
[1751056798010,6.485,2423.6,2423.5,7.89914648]
[1751056798414,7.30986,2423.6,2423.5,7.89914648]
[1751056800406,7.30986,2423.6,2423.5,6.51194648]
[1751056805319,7.30386,2423.6,2423.5,6.51194648]
[1751056809522,10.29829861,2423.6,2423.4,1.63812447]
[1751056809728,0.82497,2423.3,2423.2,2.43914648]
[1751056809915,10.29829861,2423.3,2423.1,2.43914648]
[1751056810121,3.91121,2423.2,2423.1,2.43914648]
[1751056810320,0.82507,2423.1,2422.9,2.43914648]
[1751056810520,6.479,2423.0,2422.9,2.43914648]
[1751056810721,6.479,2423.0,2422.9,3.26425648]
[1751056810917,0.7956,2423.2,2422.9,6.25844509]
[1751056811124,6.479,2423.2,2423.1,9.48346077]
[1751056811323,6.479,2423.2,2423.1,7.02709861]
[1751056811822,6.479,2423.2,2423.1,7.82419861]
[1751056812627,6.479,2423.2,2423.1,8.64923861]
[1751056812820,6.479,2423.2,2423.1,7.82419861]
[1751056813829,6.479,2423.2,2423.1,4.0049]
[1751056814627,7.30401,2423.2,2423.1,4.0049]
[1751056816430,7.30401,2423.2,2423.1,0.7971]
[1751056816632,7.30401,2423.2,2423.1,4.0049]
[1751056818529,7.30401,2423.2,2423.1,4.82994]
[1751056820136,7.30401,2423.2,2423.1,4.0049]
[1751056820635,7.30401,2423.2,2423.1,4.82994]
[1751056820840,7.30401,2423.2,2423.1,4.0049]
[1751056823039,6.479,2423.2,2423.1,4.82995]
[1751056823242,7.30402,2423.2,2423.1,4.0049]
[1751056823442,8.16642,2423.2,2423.1,3.2078]
[1751056823644,9.57382,2423.2,2423.1,3.2078]
[1751056824945,7.3414,2423.2,2423.1,4.03285]
[1751056825146,8.16642,2423.2,2423.1,3.2078]
[1751056825350,8.16642,2423.2,2423.1,4.03285]
[1751056825547,7.30402,2423.2,2423.1,4.03285]
[1751056825742,5.81501,2423.3,2423.1,4.03285]
[1751056825949,48.3716,2423.5,2423.2,4.66879861]
[1751056826247,0.82498,2423.3,2423.2,4.66879861]
[1751056826448,7.30497,2423.4,2423.2,5.49381861]
[1751056827749,0.82498,2423.3,2423.2,5.49381861]
[1751056828647,0.82498,2423.3,2423.2,4.66879861]
[1751056829649,0.82498,2423.3,2423.2,5.49381861]
[1751056829952,7.30498,2423.4,2423.2,5.49381861]
[1751056832353,0.82498,2423.3,2423.2,4.66879861]
[1751056832743,7.30497,2423.4,2423.2,5.49381861]
[1751056833550,0.82498,2423.3,2423.2,5.49381861]
[1751056833744,6.48,2423.4,2423.2,5.49381861]
[1751056833951,7.30497,2423.4,2423.2,5.49381861]
[1751056834249,0.82498,2423.3,2423.2,5.49381861]
[1751056834649,7.30497,2423.4,2423.2,5.49381861]
[1751056835149,48.3716,2423.5,2423.2,4.66879861]
[1751056835354,6.472,2423.4,2423.3,3.81929861]
[1751056835854,7.29695,2423.4,2423.3,3.81929861]
[1751056837956,7.29695,2423.4,2423.3,4.64427861]
[1751056838454,47.529,2423.5,2423.4,0.82495]
[1751056838651,54.001,2423.5,2423.4,6.48911216]
[1751056838956,54.82592,2423.5,2423.4,7.94751216]
[1751056839259,54.001,2423.5,2423.4,7.94751216]
[1751056840560,6.472,2423.5,2423.4,7.94751216]
[1751056841361,0.82491,2423.6,2423.5,0.82492]
[1751056841661,7.29691,2423.6,2423.5,1.63527989]
[1751056841958,7.29691,2423.6,2423.5,2.44447989]
[1751056842159,7.29691,2423.6,2423.5,3.26939989]
[1751056843263,7.29691,2423.6,2423.5,6.47719989]
[1751056843864,7.29691,2423.6,2423.5,5.65227989]
[1751056844159,7.29691,2423.6,2423.5,6.47719989]
[1751056844360,7.29691,2423.6,2423.5,9.4715785]
[1751056844558,0.82491,2423.6,2423.5,9.4715785]
[1751056844764,7.29691,2423.6,2423.5,9.4715785]
[1751056845058,4.99,2423.7,2423.5,9.4715785]
[1751056845266,6.472,2423.7,2423.6,0.82488]
[1751056845465,6.472,2423.7,2423.6,2.46015989]
[1751056845963,6.472,2423.7,2423.5,9.18929861]
[1751056845964,6.472,2423.7,2423.5,5.65227989]
[1751056846264,1.65668,2423.6,2423.5,4.84307989]
[1751056849373,3.02238,2423.6,2423.5,3.2078]
[1751056852970,1.65668,2423.6,2423.5,3.2078]
[1751056853172,1.65668,2423.6,2423.5,5.66416216]
[1751056853773,7.29685,2423.7,2423.5,6.48907216]
[1751056853975,7.29685,2423.7,2423.6,1.63595612]
[1751056854175,7.29685,2423.7,2423.6,2.49705612]
[1751056854675,7.29685,2423.7,2423.6,2.49721963]
[1751056855176,7.29685,2423.7,2423.6,0.8611]
[1751056856168,0.82487,2423.6,2423.5,6.48907216]
[1751056856471,2.15527,2423.6,2423.5,1.63613599]
[1751056858777,0.82491,2423.5,2423.4,1.63613599]
[1751056859076,3.17001,2423.5,2423.4,1.63613599]
[1751056859275,0.82494,2423.4,2423.3,1.63613599]
[1751056859577,0.82497,2423.3,2423.2,4.84393599]
[1751056859975,2.28317,2423.3,2423.2,4.84393599]
[1751056860469,2.28317,2423.3,2423.2,3.2078]
[1751056861777,2.28317,2423.3,2423.2,4.84477423]
[1751056866675,0.82497,2423.3,2423.2,4.84477423]
[1751056866984,8.13216,2423.4,2423.2,4.84509577]
[1751056867483,9.51026,2423.4,2423.2,4.84509577]
[1751056867671,9.51026,2423.4,2423.2,5.67009577]
[1751056867875,9.51026,2423.4,2423.2,4.84509577]
[1751056868075,0.82497,2423.3,2423.2,4.84509577]
[1751056869882,7.28897,2423.3,2423.2,3.2078]
[1751056871184,7.28897,2423.3,2423.2,4.84446894]
[1751056871786,11.10826861,2423.3,2423.2,4.84446894]
[1751056871987,12.54986861,2423.3,2423.2,4.84446894]
[1751056874276,12.54986861,2423.3,2423.2,3.2078]
[1751056878096,7.28897,2423.3,2423.2,3.2078]
[1751056878292,6.464,2423.3,2423.2,3.2078]
[1751056878588,6.464,2423.3,2423.2,4.0548]
[1751056879187,6.464,2423.3,2423.2,4.87981]
[1751056879996,6.464,2423.3,2423.2,4.0548]
[1751056881286,7.28897,2423.3,2423.2,4.0548]
[1751056885007,0.82497,2423.3,2423.2,4.0548]
[1751056885208,1.66116,2423.4,2423.2,4.0548]
[1751056885504,6.464,2423.3,2423.2,4.0548]
[1751056886105,6.464,2423.3,2423.2,5.69146894]
[1751056886301,7.28897,2423.3,2423.2,2.48366894]
[1751056886606,7.28897,2423.3,2423.2,0.847]
[1751056887100,4.99,2423.5,2423.2,0.847]
[1751056887307,6.465,2424.2,2423.4,9.48346077]
[1751056887507,6.465,2424.2,2423.8,3.2078]
[1751056887703,0.82471,2424.1,2423.9,41.6416]
[1751056887908,8.15738,2424.2,2423.9,43.27906295]
[1751056888104,7.3327,2424.2,2423.9,43.27906295]
[1751056888297,0.8677,2424.2,2424.0,3.81929861]
[1751056888504,6.465,2424.1,2424.0,4.64401861]
[1751056888705,0.82457,2424.5,2424.0,4.70019861]
[1751056889010,6.465,2424.4,2424.0,6.33766156]
[1751056889205,6.465,2424.4,2424.0,4.70019861]
[1751056889405,0.82457,2424.5,2424.0,5.52492861]
[1751056889606,0.82457,2424.5,2424.1,3.2078]
[1751056889806,6.464,2424.4,2424.1,3.2078]
[1751056891010,47.538,2424.6,2424.2,3.81929861]
[1751056891313,6.464,2424.5,2424.4,7.85169861]
[1751056891914,6.464,2424.9,2424.6,0.8245]
[1751056892117,6.464,2424.9,2424.7,3.81929861]
[1751056892411,6.464,2424.9,2424.7,4.69649861]
[1751056893205,6.464,2424.9,2424.7,7.90429861]
[1751056893410,6.464,2424.9,2424.8,40.8]
[1751056895117,0.82437,2425.1,2424.8,40.8]
[1751056895307,7.2794,2425.0,2424.8,40.8]
[1751056895507,6.455,2425.0,2424.8,40.8]
[1751056896007,7.27939,2425.0,2424.8,40.8]
[1751056896209,0.82439,2425.0,2424.8,40.8]
[1751056896406,6.455,2424.9,2424.8,40.8]
[1751056897709,0.8242,2425.6,2425.3,0.82427]
[1751056897908,0.8242,2425.6,2425.5,3.2078]
[1751056898101,7.27917,2425.7,2425.5,3.2078]
[1751056901506,0.82416,2425.6,2425.5,3.2078]
[1751056902812,6.455,2425.7,2425.5,3.2078]
[1751056903012,6.454,2425.6,2425.5,3.2078]
[1751056903313,7.27816,2425.6,2425.5,3.2078]
[1751056904819,6.454,2425.6,2425.5,3.2078]
[1751056905208,7.27817,2425.6,2425.5,3.2078]
[1751056906207,7.27717,2425.6,2425.5,3.2078]
[1751056908913,7.27717,2425.6,2425.5,44.0078]
[1751056909218,4.99,2425.9,2425.5,44.0078]
[1751056909416,4.99,2425.9,2425.7,3.81929861]
[1751056909417,0.8241,2425.8,2425.7,3.81929861]
[1751056909715,7.27709,2425.9,2425.7,3.81929861]
[1751056909913,0.8241,2425.8,2425.7,3.81929861]
[1751056910513,0.82415,2425.7,2425.5,49.23739861]
[1751056910917,0.82417,2425.6,2425.5,47.82709861]
[1751056912508,0.82417,2425.6,2425.5,44.0078]
[1751056913009,7.27617,2425.6,2425.5,44.0078]
[1751056915820,0.82417,2425.6,2425.5,44.0078]
[1751056919520,7.27617,2425.6,2425.5,44.0078]
[1751056920025,6.452,2425.6,2425.5,47.82709861]
[1751056920227,7.27617,2425.6,2425.5,47.82709861]
[1751056922831,7.27617,2425.6,2425.5,44.0078]
[1751056925334,7.27617,2425.6,2425.5,45.6290772]
[1751056927331,7.27617,2425.6,2425.5,46.46416216]
[1751056927527,7.27617,2425.6,2425.5,47.35776216]
[1751056929533,4.99,2425.8,2425.7,0.82413]
[1751056929738,0.82404,2426.0,2425.7,29.74042861]
[1751056929739,0.82405,2426.0,2425.7,29.74042861]
[1751056930039,0.82405,2426.0,2425.9,5.65597618]
[1751056930234,7.29501,2426.1,2425.9,32.17809861]
[1751056930434,6.471,2426.1,2426.0,6.77738177]
[1751056930640,7.29499,2426.1,2426.0,6.77738177]
[1751056931140,1.7999,2426.2,2426.0,5.45048177]
[1751056931342,9.09486,2426.2,2426.1,25.15]
[1751056931536,7.29496,2426.2,2426.1,25.15]
[1751056932638,0.82403,2426.0,2425.9,5.72028316]
[1751056932936,0.82403,2426.0,2425.9,30.87828316]
[1751056935940,0.82403,2426.1,2425.9,30.87828316]
[1751056936238,0.82403,2426.0,2425.9,34.69758177]
[1751056936638,0.82403,2426.0,2425.9,30.87828316]
[1751056938148,0.82403,2426.0,2425.9,28.3658]
[1751056938339,0.82403,2426.0,2425.9,3.2078]
[1751056938546,3.13133,2426.0,2425.9,28.3498]
[1751056938741,0.8241,2425.8,2425.7,26.77318316]
[1751056939045,7.2951,2425.8,2425.7,26.77318316]
[1751056939241,7.2951,2425.8,2425.7,1.63118316]
[1751056939439,8.7201,2425.8,2425.7,1.63118316]
[1751056939643,8.7201,2425.8,2425.5,30.79997618]
[1751056939644,0.82413,2425.7,2425.6,42.43118316]
[1751056939849,3.09433,2425.7,2425.6,1.63118316]
[1751056940145,0.82417,2425.6,2425.5,29.98298316]
[1751056941143,0.82415,2425.7,2425.5,28.3518]
[1751056941347,6.471,2425.9,2425.5,28.3518]
[1751056941348,0.82412,2425.8,2425.6,3.81929861]
[1751056941652,0.82412,2425.8,2425.7,27.57929393]
[1751056942032,0.82412,2425.8,2425.7,28.96839393]
[1751056943749,0.82412,2425.8,2425.7,27.57929393]
[1751056944248,0.82412,2425.8,2425.7,25.9491]
[1751056944747,0.82412,2425.8,2425.7,27.5704707]
[1751056945449,0.82412,2425.8,2425.7,25.9401]
[1751056945950,0.82412,2425.8,2425.7,27.5704707]
[1751056947149,4.99,2426.0,2425.7,28.3945907]
[1751056947352,12.28503,2426.0,2425.9,3.2078]
[1751056953053,7.29503,2426.0,2425.9,3.2078]
[1751056954757,11.461,2426.2,2426.1,0.824]
[1751056954950,7.29496,2426.2,2426.0,5.53150861]
[1751056955263,6.471,2426.2,2426.1,0.824]
[1751056956259,7.29496,2426.2,2426.1,0.824]
[1751056956955,6.471,2426.2,2426.1,0.824]
[1751056957452,1.41032,2426.4,2426.0,4.70749861]
[1751056957650,0.5864,2426.4,2426.3,3.81929861]
[1751056957855,7.87829,2426.4,2426.3,3.81929861]
[1751056958155,7.29189,2426.4,2426.3,4.63259861]
[1751056958457,7.29189,2426.4,2426.3,0.8133]
[1751056962960,7.29189,2426.4,2426.2,28.3088]
[1751056962961,0.82393,2426.3,2426.2,28.3088]
[1751056963163,0.82393,2426.3,2426.2,29.149]
[1751056966165,0.82393,2426.3,2426.2,28.3088]
[1751056966356,1.70753,2426.3,2426.2,28.3088]
[1751056966762,3.07093,2426.3,2426.2,28.3088]
[1751056967865,3.07093,2426.3,2426.2,3.2078]
[1751056968667,8.07093,2426.3,2426.2,3.2078]
[1751056969169,13.06093,2426.3,2426.2,3.2078]
[1751056969361,8.06093,2426.3,2426.2,3.2078]
[1751056970668,0.82403,2426.0,2425.9,4.8381707]
[1751056970870,7.29203,2426.0,2425.9,4.8381707]
[1751056973571,0.82406,2425.9,2425.8,1.6303707]
[1751056973773,7.79475861,2425.9,2425.8,1.6303707]
[1751056973974,8.1514,2425.9,2425.6,1.63378213]
[1751056974268,7.85122861,2425.7,2425.6,1.63378213]
[1751056974469,14.31922861,2425.7,2425.6,1.63378213]
[1751056974673,13.49509861,2425.7,2425.4,2.44817618]
[1751056974857,0.82423,2425.4,2425.3,5.65597618]
[1751056975175,7.29223,2425.4,2425.3,3.2078]
[1751056975472,0.82423,2425.4,2425.3,3.2078]
[1751056975770,7.29223,2425.4,2425.3,3.2078]